Workbook

Sheet DC
B1: Participation Points - Athletics | H1: District Championship Points - Athletics | N1: State Championship Points - Athletics | U1: Deductions
A2: School | B2: Boys XC | C2: Girls XC | D2: Football | E2: Boys Soccer | F2: Girls Soccer | G2: Volleyball | H2: Boys XC | I2: Girls XC | J2: Football | K2: Boys Soccer | L2: Girls Soccer | M2: Volleyball | N2: Boys XC | O2: Girls XC | P2: Football | Q2: Boys Soccer | R2: Girls Soccer | S2: Volleyball | T2: Marching Band | U2: F. Ejections | V2: TOTAL
A3: Cleveland | B3: 20 | C3: 20 | D3: 20 | E3: 20 | F3: 20 | G3: 20 | H3: 60 | I3: 60 | J3: 60 | M3: 60 | N3: 120 | O3: 100 | P3: 120 | S3: 80 | T3: 120 | U3: -100 | V3: =SUM(B3:U3) -> 800
A4: La Cueva | B4: 20 | C4: 20 | D4: 20 | E4: 20 | F4: 20 | G4: 20 | H4: 60 | J4: 60 | K4: 60 | M4: 60 | N4: 80 | O4: 80 | P4: 80 | Q4: 120 | R4: 80 | S4: 100 | U4: -300 | V4: =SUM(B4:U4) -> 600
A5: Rio Rancho | B5: 20 | C5: 20 | D5: 20 | E5: 20 | F5: 20 | G5: 20 | K5: 60 | N5: 100 | O5: 80 | Q5: 100 | R5: 100 | T5: 100 | U5: -100 | V5: =SUM(B5:U5) -> 560
A6: Volcano Vista | B6: 20 | C6: 20 | D6: 20 | E6: 20 | F6: 20 | G6: 20 | L6: 60 | Q6: 80 | R6: 80 | V6: =SUM(B6:U6) -> 340
A7: Clovis | B7: 20 | C7: 20 | D7: 20 | E7: 20 | F7: 20 | G7: 20 | I7: 60 | M7: 60 | T7: 80 | V7: =SUM(B7:U7) -> 320
A8: Los Lunas | B8: 20 | C8: 20 | D8: 20 | E8: 20 | F8: 20 | G8: 20 | H8: 60 | N8: 80 | V8: =SUM(B8:U8) -> 260
A9: Farmington | B9: 20 | C9: 20 | D9: 20 | E9: 20 | F9: 20 | G9: 20 | V9: =SUM(B9:U9) -> 120
A10: Albuquerque High | B10: 20 | C10: 20 | D10: 20 | E10: 20 | F10: 20 | G10: 20 | I10: 60 | L10: 60 | M10: 60 | S10: 80 | U10: -300 | V10: =SUM(B10:U10) -> 80
A11: Eldorado | B11: 20 | C11: 20 | D11: 20 | E11: 20 | F11: 20 | G11: 20 | I11: 60 | L11: 60 | O11: 120 | R11: 120 | U11: -400 | V11: =SUM(B11:U11) -> 80
A12: Organ Mountain | B12: 20 | C12: 20 | D12: 20 | E12: 20 | F12: 20 | G12: 20 | H12: 60 | I12: 60 | L12: 60 | T12: 80 | U12: -300 | V12: =SUM(B12:U12) -> 80
A13: Hobbs | B13: 20 | C13: 20 | D13: 20 | E13: 20 | F13: 20 | G13: 20 | H13: 60 | K13: 60 | L13: 60 | P13: 80 | Q13: 80 | U13: -400 | V13: =SUM(B13:U13) -> 60
A14: Las Cruces | B14: 20 | C14: 20 | D14: 20 | E14: 20 | F14: 20 | G14: 20 | J14: 60 | M14: 60 | P14: 100 | S14: 120 | U14: -400 | V14: =SUM(B14:U14) -> 60
A15: Manzano | B15: 20 | C15: 20 | D15: 20 | E15: 20 | F15: 20 | G15: 20 | U15: -100 | V15: =SUM(B15:U15) -> 20
A16: Sandia | B16: 20 | C16: 20 | D16: 20 | E16: 20 | F16: 20 | G16: 20 | U16: -100 | V16: =SUM(B16:U16) -> 20
A17: West Mesa | B17: 20 | C17: 20 | D17: 20 | E17: 20 | F17: 20 | G17: 20 | U17: -100 | V17: =SUM(B17:U17) -> 20
A18: Gadsden | B18: 20 | C18: 20 | D18: 20 | E18: 20 | F18: 20 | G18: 20 | K18: 60 | P18: 80 | U18: -300 | V18: =SUM(B18:U18) -> -40
A19: Alamogordo | B19: 20 | C19: 20 | D19: 20 | E19: 20 | F19: 20 | G19: 20 | U19: -200 | V19: =SUM(B19:U19) -> -80
A20: Capital | B20: 20 | C20: 20 | D20: 20 | E20: 20 | F20: 20 | G20: 20 | U20: -200 | V20: =SUM(B20:U20) -> -80
A21: Centennial | B21: 20 | C21: 20 | D21: 20 | E21: 20 | F21: 20 | G21: 20 | U21: -200 | V21: =SUM(B21:U21) -> -80
A22: Piedra Vista | B22: 20 | C22: 20 | D22: 20 | E22: 20 | F22: 20 | G22: 20 | U22: -200 | V22: =SUM(B22:U22) -> -80
A23: Cibola | B23: 20 | C23: 20 | D23: 20 | E23: 20 | F23: 20 | G23: 20 | U23: -300 | V23: =SUM(B23:U23) -> -180
A24: Mayfield | B24: 20 | C24: 20 | D24: 20 | E24: 20 | F24: 20 | G24: 20 | U24: -300 | V24: =SUM(B24:U24) -> -180
A25: Santa Fe | B25: 20 | C25: 20 | D25: 20 | E25: 20 | F25: 20 | G25: 20 | U25: -300 | V25: =SUM(B25:U25) -> -180
A26: Rio Grande | B26: 20 | C26: 20 | D26: 20 | E26: 20 | F26: 20 | G26: 20 | K26: 60 | U26: -400 | V26: =SUM(B26:U26) -> -220
A27: Carlsbad | B27: 20 | C27: 20 | D27: 20 | E27: 20 | F27: 20 | G27: 20 | U27: -400 | V27: =SUM(B27:U27) -> -280
A28: Roswell | B28: 20 | C28: 20 | D28: 20 | E28: 20 | F28: 20 | G28: 20 | P28: 100 | U28: -500 | V28: =SUM(B28:U28) -> -280
A29: Atrisco Heritage Academy | B29: 20 | C29: 20 | D29: 20 | E29: 20 | F29: 20 | G29: 20 | U29: -600 | V29: =SUM(B29:U29) -> -480
A31: School | B31: Boys XC | C31: Girls XC | D31: Football | E31: Boys Soccer | F31: Girls Soccer | G31: Volleyball | H31: Boys XC | I31: Girls XC | J31: Football | K31: Boys Soccer | L31: Girls Soccer | M31: Volleyball | N31: Boys XC | O31: Girls XC | P31: Football | Q31: Boys Soccer | R31: Girls Soccer | S31: Volleyball | T31: Marching Band | U31: F. Ejections | V31: TOTAL
A32: St. Pius X | B32: 20 | C32: 20 | D32: 20 | E32: 20 | F32: 20 | G32: 20 | H32: 60 | J32: 60 | L32: 60 | M32: 60 | N32: 80 | P32: 100 | Q32: 120 | R32: 80 | S32: 120 | V32: =SUM(B32:U32) -> 860
A33: Los Alamos | B33: 20 | C33: 20 | D33: 20 | E33: 20 | F33: 20 | G33: 20 | H33: 60 | I33: 60 | J33: 60 | K33: 60 | L33: 60 | N33: 100 | O33: 120 | R33: 80 | T33: 120 | V33: =SUM(B33:U33) -> 840
A34: Albuquerque Academy | B34: 20 | C34: 20 | D34: 20 | E34: 20 | F34: 20 | G34: 20 | H34: 60 | I34: 60 | K34: 60 | M34: 60 | N34: 120 | O34: 100 | Q34: 100 | R34: 100 | S34: 100 | U34: -100 | V34: =SUM(B34:U34) -> 780
A35: Artesia | B35: 20 | C35: 20 | D35: 20 | E35: 20 | F35: 20 | G35: 20 | H35: 60 | I35: 60 | J35: 60 | K35: 60 | L35: 60 | P35: 120 | Q35: 80 | S35: 80 | U35: -100 | V35: =SUM(B35:U35) -> 600
A36: Hope Christian | B36: 20 | C36: 20 | D36: 20 | E36: 20 | F36: 20 | G36: 20 | L36: 60 | P36: 80 | R36: 120 | V36: =SUM(B36:U36) -> 380
A37: Bloomfield | B37: 20 | C37: 20 | D37: 20 | E37: 20 | F37: 20 | G37: 20 | J37: 60 | K37: 60 | P37: 120 | V37: =SUM(B37:U37) -> 360
A38: Miyamura | B38: 20 | C38: 20 | D38: 20 | E38: 20 | F38: 20 | G38: 20 | I38: 60 | L38: 60 | O38: 80 | V38: =SUM(B38:U38) -> 320
A39: Santa Teresa | B39: 20 | C39: 20 | D39: 20 | E39: 20 | F39: 20 | G39: 20 | K39: 60 | L39: 60 | Q39: 80 | V39: =SUM(B39:U39) -> 320
A40: Silver | B40: 20 | C40: 20 | D40: 20 | E40: 20 | F40: 20 | G40: 20 | H40: 60 | I40: 60 | M40: 60 | V40: =SUM(B40:U40) -> 300
A41: Lovington | B41: 20 | C41: 20 | D41: 20 | E41: 20 | F41: 20 | G41: 20 | P41: 80 | T41: 80 | V41: =SUM(B41:U41) -> 280
A42: Goddard | B42: 20 | C42: 20 | D42: 20 | E42: 20 | F42: 20 | G42: 20 | M42: 60 | S42: 80 | T42: 100 | U42: -100 | V42: =SUM(B42:U42) -> 260
A43: Taos | B43: 20 | C43: 20 | D43: 20 | E43: 20 | F43: 20 | G43: 20 | M43: 60 | P43: 80 | V43: =SUM(B43:U43) -> 260
A44: Gallup | B44: 20 | C44: 20 | D44: 20 | E44: 20 | F44: 20 | G44: 20 | O44: 80 | V44: =SUM(B44:U44) -> 200
A45: Portales | B45: 20 | C45: 20 | D45: 20 | E45: 20 | F45: 20 | G45: 20 | T45: 80 | V45: =SUM(B45:U45) -> 200
A46: Del Norte | B46: 20 | C46: 20 | D46: 20 | E46: 20 | F46: 20 | G46: 20 | V46: =SUM(B46:U46) -> 120
A47: Highland | B47: 20 | C47: 20 | D47: 20 | E47: 20 | F47: 20 | G47: 20 | V47: =SUM(B47:U47) -> 120
A48: Valencia | B48: 20 | C48: 20 | D48: 20 | E48: 20 | F48: 20 | G48: 20 | V48: =SUM(B48:U48) -> 120
A49: Valley | B49: 20 | C49: 20 | D49: 20 | E49: 20 | F49: 20 | G49: 20 | V49: =SUM(B49:U49) -> 120
A50: Chaparral | B50: 20 | C50: 20 | D50: 20 | E50: 20 | F50: 20 | G50: 20 | P50: 80 | U50: -100 | V50: =SUM(B50:U50) -> 100
A51: Espanola Valley | B51: 20 | C51: 20 | D51: 20 | G51: 20 | V51: =SUM(B51:U51) -> 80
A52: Shiprock | B52: 20 | C52: 20 | D52: 20 | G52: 20 | V52: =SUM(B52:U52) -> 80
A53: Belen | B53: 20 | C53: 20 | D53: 20 | E53: 20 | F53: 20 | G53: 20 | U53: -100 | V53: =SUM(B53:U53) -> 20
A54: Deming | B54: 20 | C54: 20 | D54: 20 | E54: 20 | F54: 20 | G54: 20 | U54: -100 | V54: =SUM(B54:U54) -> 20
A55: Kirtland Central | B55: 20 | C55: 20 | D55: 20 | E55: 20 | F55: 20 | G55: 20 | H55: 60 | M55: 60 | N55: 80 | U55: -350 | V55: =SUM(B55:U55) -> -30
A56: Moriarty | B56: 20 | C56: 20 | D56: 20 | E56: 20 | F56: 20 | G56: 20 | U56: -200 | V56: =SUM(B56:U56) -> -80
A57: Pojoaque Valley | B57: 20 | C57: 20 | D57: 20 | E57: 20 | F57: 20 | G57: 20 | U57: -300 | V57: =SUM(B57:U57) -> -180
A58: Aztec | B58: 20 | C58: 20 | D58: 20 | E58: 20 | F58: 20 | G58: 20 | U58: -450 | V58: =SUM(B58:U58) -> -330
A59: Bernalillo | B59: 20 | C59: 20 | D59: 20 | E59: 20 | F59: 20 | G59: 20 | U59: -600 | V59: =SUM(B59:U59) -> -480
A60: Grants | B60: 20 | C60: 20 | D60: 20 | E60: 20 | F60: 20 | G60: 20 | I60: 60 | U60: -1000 | V60: =SUM(B60:U60) -> -820
A62: School | B62: Boys XC | C62: Girls XC | D62: Football | E62: Boys Soccer | F62: Girls Soccer | G62: Volleyball | H62: Boys XC | I62: Girls XC | J62: Football | K62: Boys Soccer | L62: Girls Soccer | M62: Volleyball | N62: Boys XC | O62: Girls XC | P62: Football | Q62: Boys Soccer | R62: Girls Soccer | S62: Volleyball | T62: Marching Band | U62: F. Ejections | V62: TOTAL
A63: Cottonwood Classical | B63: 20 | C63: 20 | E63: 20 | F63: 20 | G63: 20 | I63: 60 | L63: 60 | M63: 60 | O63: 100 | R63: 80 | S63: 80 | V63: =SUM(B63:U63) -> 540
A64: Santa Fe Prep | B64: 20 | C64: 20 | E64: 20 | F64: 20 | G64: 20 | I64: 60 | K64: 60 | O64: 120 | Q64: 120 | R64: 80 | U64: -100 | V64: =SUM(B64:U64) -> 440
A65: Navajo Prep | B65: 20 | C65: 20 | D65: 20 | F65: 20 | G65: 20 | H65: 60 | I65: 60 | N65: 100 | O65: 80 | V65: =SUM(B65:U65) -> 400
A66: Bosque | B66: 20 | C66: 20 | E66: 20 | F66: 20 | G66: 20 | Q66: 80 | R66: 100 | V66: =SUM(B66:U66) -> 280
A67: Ruidoso | B67: 20 | C67: 20 | D67: 20 | E67: 20 | F67: 20 | G67: 20 | H67: 60 | L67: 60 | M67: 60 | N67: 80 | U67: -100 | V67: =SUM(B67:U67) -> 280
A68: Sandia Prep | B68: 20 | C68: 20 | E68: 20 | F68: 20 | G68: 20 | K68: 60 | Q68: 100 | V68: =SUM(B68:U68) -> 260
A69: East Mountain | B69: 20 | C69: 20 | E69: 20 | F69: 20 | G69: 20 | H69: 60 | O69: 80 | V69: =SUM(B69:U69) -> 240
A70: St. Michael's | B70: 20 | C70: 20 | D70: 20 | E70: 20 | F70: 20 | G70: 20 | J70: 60 | L70: 60 | M70: 60 | P70: 120 | R70: 120 | S70: 100 | U70: -400 | V70: =SUM(B70:U70) -> 240
A71: NMMI | B71: 20 | C71: 20 | D71: 20 | E71: 20 | G71: 20 | K71: 60 | P71: 80 | Q71: 80 | U71: -100 | V71: =SUM(B71:U71) -> 220
A72: Cobre | B72: 20 | C72: 20 | D72: 20 | G72: 20 | M72: 60 | S72: 120 | U72: -100 | V72: =SUM(B72:U72) -> 160
A73: Santa Fe Indian | B73: 20 | C73: 20 | D73: 20 | F73: 20 | G73: 20 | H73: 60 | N73: 120 | S73: 80 | U73: -200 | V73: =SUM(B73:U73) -> 160
A74: Dexter | B74: 20 | C74: 20 | D74: 20 | G74: 20 | J74: 60 | P74: 100 | U74: -100 | V74: =SUM(B74:U74) -> 140
A75: Cuba | B75: 20 | C75: 20 | D75: 20 | G75: 20 | V75: =SUM(B75:U75) -> 80
A76: Newcomb | B76: 20 | C76: 20 | D76: 20 | G76: 20 | V76: =SUM(B76:U76) -> 80
A77: Zuni | B77: 20 | C77: 20 | D77: 20 | G77: 20 | N77: 80 | U77: -100 | V77: =SUM(B77:U77) -> 60
A78: Thoreau | B78: 20 | C78: 20 | D78: 20 | G78: 20 | J78: 60 | U78: -100 | V78: =SUM(B78:U78) -> 40
A79: Tularosa | D79: 20 | G79: 20 | V79: =SUM(B79:U79) -> 40
A80: Hot Springs | B80: 20 | C80: 20 | D80: 20 | E80: 20 | G80: 20 | U80: -100 | V80: =SUM(B80:U80) -> 0
A81: ATC | B81: 20 | C81: 20 | E81: 20 | F81: 20 | U81: -100 | V81: =SUM(B81:U81) -> -20
A82: Crownpoint | B82: 20 | C82: 20 | D82: 20 | G82: 20 | U82: -100 | V82: =SUM(B82:U82) -> -20
A83: Hatch Valley | D83: 20 | E83: 20 | F83: 20 | G83: 20 | U83: -100 | V83: =SUM(B83:U83) -> -20
A84: Robertson | D84: 20 | E84: 20 | F84: 20 | G84: 20 | U84: -100 | V84: =SUM(B84:U84) -> -20
A85: Tohatchi | B85: 20 | C85: 20 | D85: 20 | G85: 20 | M85: 60 | U85: -200 | V85: =SUM(B85:U85) -> -60
A86: Wingate | B86: 20 | C86: 20 | D86: 20 | G86: 20 | U86: -200 | V86: =SUM(B86:U86) -> -120
A87: Socorro | B87: 20 | C87: 20 | D87: 20 | E87: 20 | F87: 20 | G87: 20 | I87: 60 | U87: -400 | V87: =SUM(B87:U87) -> -220
A88: West Las Vegas | B88: 20 | C88: 20 | D88: 20 | E88: 20 | F88: 20 | G88: 20 | U88: -500 | V88: =SUM(B88:U88) -> -380
A90: School | B90: Boys XC | C90: Girls XC | D90: Football | E90: Boys Soccer | F90: Girls Soccer | G90: Volleyball | H90: Boys XC | I90: Girls XC | J90: Football | K90: Boys Soccer | L90: Girls Soccer | M90: Volleyball | N90: Boys XC | O90: Girls XC | P90: Football | Q90: Boys Soccer | R90: Girls Soccer | S90: Volleyball | T90: Marching Band | U90: F. Ejections | V90: TOTAL
A91: Oak Grove Classical | B91: 20 | C91: 20 | E91: 20 | G91: 20 | H91: 60 | I91: 60 | N91: 100 | O91: 120 | V91: =SUM(B91:U91) -> 420
A92: Pecos | B92: 20 | C92: 20 | G92: 20 | H92: 60 | I92: 60 | N92: 120 | O92: 100 | V92: =SUM(B92:U92) -> 400
A93: Legacy Academy | B93: 20 | C93: 20 | D93: 20 | G93: 20 | J93: 60 | M93: 60 | P93: 80 | S93: 120 | U93: -100 | V93: =SUM(B93:U93) -> 300
A94: Rehoboth Christian | B94: 20 | C94: 20 | E94: 20 | F94: 20 | G94: 20 | I94: 60 | M94: 60 | O94: 80 | V94: =SUM(B94:U94) -> 300
A95: Texico | D95: 20 | G95: 20 | J95: 60 | M95: 60 | P95: 120 | S95: 100 | U95: -100 | V95: =SUM(B95:U95) -> 280
A96: Mesilla Valley | D96: 20 | G96: 20 | M96: 60 | P96: 80 | S96: 80 | V96: =SUM(B96:U96) -> 260
A97: Hozho Academy | B97: 20 | C97: 20 | D97: 20 | G97: 20 | J97: 60 | P97: 80 | V97: =SUM(B97:U97) -> 220
A98: Tatum | D98: 20 | G98: 20 | P98: 80 | S98: 80 | V98: =SUM(B98:U98) -> 200
A99: Mesa Vista | B99: 20 | C99: 20 | G99: 20 | N99: 80 | V99: =SUM(B99:U99) -> 140
A100: Raton | B100: 20 | C100: 20 | D100: 20 | G100: 20 | M100: 60 | V100: =SUM(B100:U100) -> 140
A101: Questa | D101: 20 | E101: 20 | G101: 20 | M101: 60 | V101: =SUM(B101:U101) -> 120
A102: Clayton | B102: 20 | C102: 20 | D102: 20 | G102: 20 | V102: =SUM(B102:U102) -> 80
A103: Cloudcroft | B103: 20 | C103: 20 | D103: 20 | G103: 20 | V103: =SUM(B103:U103) -> 80
A104: Dulce | B104: 20 | C104: 20 | D104: 20 | G104: 20 | V104: =SUM(B104:U104) -> 80
A105: Estancia | B105: 20 | C105: 20 | D105: 20 | G105: 20 | V105: =SUM(B105:U105) -> 80
A106: Jemez Valley | B106: 20 | C106: 20 | D106: 20 | G106: 20 | V106: =SUM(B106:U106) -> 80
A107: Loving | B107: 20 | C107: 20 | D107: 20 | G107: 20 | V107: =SUM(B107:U107) -> 80
A108: Menaul | B108: 20 | C108: 20 | D108: 20 | G108: 20 | V108: =SUM(B108:U108) -> 80
A109: Navajo Pine | B109: 20 | C109: 20 | D109: 20 | G109: 20 | V109: =SUM(B109:U109) -> 80
A110: Ramah | B110: 20 | C110: 20 | D110: 20 | G110: 20 | V110: =SUM(B110:U110) -> 80
A111: Santa Rosa | B111: 20 | C111: 20 | D111: 20 | G111: 20 | V111: =SUM(B111:U111) -> 80
A112: Monte Del Sol | E112: 20 | F112: 20 | G112: 20 | V112: =SUM(B112:U112) -> 60
A113: Mora | B113: 20 | C113: 20 | G113: 20 | V113: =SUM(B113:U113) -> 60
A114: NACA | B114: 20 | C114: 20 | G114: 20 | V114: =SUM(B114:U114) -> 60
A115: Penasco | B115: 20 | C115: 20 | G115: 20 | V115: =SUM(B115:U115) -> 60
A116: Escalante | D116: 20 | G116: 20 | V116: =SUM(B116:U116) -> 40
A117: Eunice | D117: 20 | G117: 20 | P117: 100 | U117: -100 | V117: =SUM(B117:U117) -> 40
A118: Hagerman | B118: 20 | C118: 20 | D118: 20 | G118: 20 | H118: 60 | U118: -100 | V118: =SUM(B118:U118) -> 40
A119: Lordsburg | D119: 20 | G119: 20 | V119: =SUM(B119:U119) -> 40
A120: Tierra Encantada | E120: 20 | G120: 20 | K120: 60 | U120: -100 | V120: =SUM(B120:U120) -> 0
A121: Capitan | B121: 20 | C121: 20 | D121: 20 | G121: 20 | U121: -100 | V121: =SUM(B121:U121) -> -20
A122: Jal | B122: 20 | C122: 20 | D122: 20 | G122: 20 | U122: -100 | V122: =SUM(B122:U122) -> -20
A123: Mescalero | B123: 20 | C123: 20 | D123: 20 | G123: 20 | U123: -100 | V123: =SUM(B123:U123) -> -20
A124: Tucumcari | B124: 20 | C124: 20 | D124: 20 | U124: -300 | V124: =SUM(B124:U124) -> -240
A125: McCurdy | B125: 20 | C125: 20 | D125: 20 | G125: 20 | O125: 80 | U125: -900 | V125: =SUM(B125:U125) -> -740
A126: Laguna Acoma | B126: 20 | C126: 20 | D126: 20 | G126: 20 | H126: 60 | N126: 80 | U126: -1300 | V126: =SUM(B126:U126) -> -1080
A128: School | B128: Boys XC | C128: Girls XC | D128: Football | E128: Boys Soccer | F128: Girls Soccer | G128: Volleyball | H128: Boys XC | I128: Girls XC | J128: Football | K128: Boys Soccer | L128: Girls Soccer | M128: Volleyball | N128: Boys XC | O128: Girls XC | P128: Football | Q128: Boys Soccer | R128: Girls Soccer | S128: Volleyball | T128: Marching Band | U128: F. Ejections | V128: TOTAL
A129: Melrose | D129: 20 | G129: 20 | J129: 60 | M129: 60 | P129: 100 | S129: 100 | V129: =SUM(B129:U129) -> 360
A130: Logan | B130: 20 | C130: 20 | D130: 20 | G130: 20 | M130: 60 | P130: 120 | S130: 80 | V130: =SUM(B130:U130) -> 340
A131: Quemado | B131: 20 | C131: 20 | G131: 20 | M131: 60 | S131: 120 | V131: =SUM(B131:U131) -> 240
A132: Fort Sumner | D132: 20 | G132: 20 | J132: 60 | P132: 120 | V132: =SUM(B132:U132) -> 220
A133: Grady | D133: 20 | G133: 20 | J133: 60 | P133: 100 | V133: =SUM(B133:U133) -> 200
A134: Magdalena | D134: 20 | G134: 20 | J134: 60 | P134: 80 | V134: =SUM(B134:U134) -> 180
A135: Gateway Christian | B135: 20 | C135: 20 | D135: 20 | G135: 20 | S135: 80 | V135: =SUM(B135:U135) -> 160
A136: Pine Hill | B136: 20 | C136: 20 | D136: 20 | G136: 20 | M136: 60 | V136: =SUM(B136:U136) -> 140
A137: Elida | D137: 20 | G137: 20 | P137: 80 | V137: =SUM(B137:U137) -> 120
A138: Cliff | B138: 20 | C138: 20 | I138: 60 | V138: =SUM(B138:U138) -> 100
A139: Mosquero | D139: 20 | G139: 20 | M139: 60 | V139: =SUM(B139:U139) -> 100
A140: Des Moines | B140: 20 | C140: 20 | D140: 20 | G140: 20 | V140: =SUM(B140:U140) -> 80
A141: House | B141: 20 | C141: 20 | D141: 20 | G141: 20 | V141: =SUM(B141:U141) -> 80
A142: Northwest | B142: 20 | C142: 20 | D142: 20 | G142: 20 | V142: =SUM(B142:U142) -> 80
A143: Roy | B143: 20 | C143: 20 | D143: 20 | G143: 20 | V143: =SUM(B143:U143) -> 80
A144: Tse'Yi'Gai | B144: 20 | C144: 20 | D144: 20 | G144: 20 | V144: =SUM(B144:U144) -> 80
A145: Cimarron | B145: 20 | C145: 20 | G145: 20 | V145: =SUM(B145:U145) -> 60
A146: Coronado | B146: 20 | C146: 20 | G146: 20 | V146: =SUM(B146:U146) -> 60
A147: Maxwell | B147: 20 | C147: 20 | G147: 20 | V147: =SUM(B147:U147) -> 60
A148: San Jon | B148: 20 | C148: 20 | G148: 20 | V148: =SUM(B148:U148) -> 60
A149: To'hajiilee | B149: 20 | C149: 20 | G149: 20 | V149: =SUM(B149:U149) -> 60
A150: Vaughn | B150: 20 | C150: 20 | G150: 20 | V150: =SUM(B150:U150) -> 60
A151: Animas | D151: 20 | G151: 20 | V151: =SUM(B151:U151) -> 40
A152: Carrizozo | D152: 20 | G152: 20 | V152: =SUM(B152:U152) -> 40
A153: Dora | D153: 20 | G153: 20 | V153: =SUM(B153:U153) -> 40
A154: Floyd | D154: 20 | G154: 20 | V154: =SUM(B154:U154) -> 40
A155: Hondo Valley | D155: 20 | G155: 20 | V155: =SUM(B155:U155) -> 40
A156: Lake Arthur | D156: 20 | G156: 20 | V156: =SUM(B156:U156) -> 40
A157: Clovis Christian | G157: 20 | V157: =SUM(B157:U157) -> 20
A158: Corona | G158: 20 | V158: =SUM(B158:U158) -> 20
A159: Evangel Christian | G159: 20 | V159: =SUM(B159:U159) -> 20
A160: Moreno Valley | E160: 20 | V160: =SUM(B160:U160) -> 20
A161: Reserve | G161: 20 | V161: =SUM(B161:U161) -> 20
A162: Springer | G162: 20 | V162: =SUM(B162:U162) -> 20
A163: Wagon Mound | G163: 20 | V163: =SUM(B163:U163) -> 20
A164: Walatowa Charter | G164: 20 | V164: =SUM(B164:U164) -> 20
A165: NMSBVI | V165: =SUM(B165:U165) -> 0
A166: Alamo Navajo | B166: 20 | C166: 20 | D166: 20 | G166: 20 | J166: 60 | M166: 60 | U166: -300 | V166: =SUM(B166:U166) -> -100
A167: NMSD | D167: 20 | G167: 20 | M167: 60 | U167: -250 | V167: =SUM(B167:U167) -> -150
A168: Mountainair | D168: 20 | G168: 20 | U168: -600 | V168: =SUM(B168:U168) -> -560
